Cogmind - Beta 15 @@@ ROGUE MODE // 2025.09.21 @ 10:30:11 Player: beans Result: Destroyed by X-57 Shotgunner with Shotgun Performance ------------- Evolutions (3) 1500 Regions Visited (4) 800 Robots Destroyed (77) 385 Value Destroyed (2236) 2236 Prototype IDs (0) 0 Alien Tech Used (0) 0 Bonus (0) 0 TOTAL SCORE: 4921 Bonus ------- None Cogmind --------- Core Integrity 0/700 Matter 211/300 Energy 99/100 System Corruption 5% Temperature Cool (0) Movement Core (50) Location -7/Factory Parts ------- > --- POWER (1) -------- (None) > --- PROPULSION (2) --- (None) > --- UTILITY (6) ------ Transport Network Coupler > --- WEAPON (4) ------- (None) > --- INVENTORY (5) ---- Advanced Visual Processing Unit Power Shielding Rocket Launcher Improved Grenade Launcher Remote Datajack Peak State ------------ > --- POWER ------------ (None) > --- PROPULSION ------- Titanium Leg Titanium Leg > --- UTILITY ---------- Large Storage Unit Transport Network Coupler Hacking Suite Hacking Suite > --- WEAPON ----------- Assault Rifle Shotgun Gauss Rifle Flak Cannon > --- INVENTORY -------- Power Shielding Assault Rifle Light Assault Rifle Rocket Launcher Rocket Launcher Improved Grenade Launcher Improved Grenade Launcher Greatsword [Rating: 26] Favorites ----------- Power Ion Engine Engine Ion Engine Power Core Micro Nuclear Core Propulsion Light Treads Treads Light Treads Leg Titanium Leg Utility Hacking Suite Device Kinecellerator Storage Large Storage Unit Processor Transport Network Coupler Hackware Hacking Suite Weapon Assault Rifle Energy Cannon Plasma Cannon Ballistic Gun Assault Rifle Ballistic Cannon Flak Cannon Launcher Improved Grenade Launcher Slashing Weapon Greatsword Build | -11 -10 -9 -8 -7 ------- Run | Yrd Mat Mat Mat Fac Slots Evolved 6 | . . 2 2 2 Power . | . . . . . Propulsion . | . . . . . Utility 4 | . . 2 . 2 Weapon 2 | . . . 2 . Parts Attached 34 | 5 4 9 7 9 Power 2 | 1 . . . 1 Engine 1 | 1 . . . . Core 1 | . . . . 1 Reactor . | . . . . . Propulsion 8 | 2 . 4 . 2 Treads 5 | 2 . 2 . 1 Leg 3 | . . 2 . 1 Wheel . | . . . . . Hover . | . . . . . Flight . | . . . . . Utility 7 | . 2 1 2 2 Device 1 | . . . . 1 Storage 3 | . 2 1 . . Processor 1 | . . . 1 . Hackware 2 | . . . 1 1 Protection . | . . . . . Artifact . | . . . . . Weapon 17 | 2 2 4 5 4 Energy Gun . | . . . . . Energy Cannon 1 | . . . . 1 Ballistic Gun 10 | 2 2 2 4 . Ballistic Cannon 1 | . . . 1 . Launcher 4 | . . 2 . 2 Special Weapon . | . . . . . Impact Weapon . | . . . . . Slashing Weapon 1 | . . . . 1 Piercing Weapon . | . . . . . Special Melee Weapon . | . . . . . Unidentified Prototypes . | . . . . . Parts Lost 24 | . . 2 4 18 Power 2 | . . . 1 1 Propulsion 6 | . . 2 . 4 Utility 3 | . . . . 3 Weapon 13 | . . . 3 10 Highest Loss Streak 7 | . . 1 3 7 To Critical Strikes 1 | . . . . 1 Average Backups 7 | . 2 8 8 7 Power . | . . . . . Propulsion . | . . . . . Utility 1 | . . 1 1 1 Weapon 5 | . 1 7 6 4 Tool/Special . | . . . . . Unused Backups 5 | 1 . . . 4 Power 2 | 1 . . . 1 Propulsion . | . . . . . Utility 2 | . . . . 2 Weapon . | . . . . . Tool/Special 1 | . . . . 1 Average Slot Usage (%) 63 | . 77 64 73 58 Engine 5 | . 14 11 6 . Treads 8 | . 28 17 . 1 Leg 6 | . . 2 18 6 Storage 8 | . 6 11 9 6 Processor 4 | . . . 7 7 Hackware 7 | . . . 1 14 Ballistic Gun 15 | . 28 21 25 8 Ballistic Cannon 1 | . . . 6 1 Launcher 1 | . . . . 1 Slashing Weapon 1 | . . . . 2 Peak Build Rating 26 | 5 7 13 22 26 Average Rating 15 | 2 5 7 17 21 On Entrance 9 | . 5 6 12 22 Naked Turns . | . . . . . Heaviest Build 39 | 7 19 30 38 39 Greatest Support 40 | 40 40 40 34 34 Greatest Overweight (x) 12 | 1 . 6 1 12 Average Overweight (x) . | . . . . 1 Largest Inventory Capacity 15 | 5 10 15 15 15 Average Capacity 12 | 5 7 10 15 14 Most Carried 10 | 4 6 10 10 10 Average Carried 7 | . 2 8 8 7 Final Capacity 15 | 5 10 15 15 5 Final Carried 10 | . 5 10 8 5 Class Distribution -------------------- 41% | Mutant 37% | Hacker-Mutant 10% | Hacker-Skirmisher 8% | Skirmisher Dominant Class ---------------- Mutant | -10/Materials Mutant | -9/Materials Skirmisher | -8/Materials Hacker-Mutant | -7/Factory Resources | -11 -10 -9 -8 -7 ----------- Run | Yrd Mat Mat Mat Fac Matter Collected 1976 | 204 200 513 403 656 Remotely . | . . . . . Salvage Created 2647 | . 361 786 515 985 Parts 152 | . 25 54 22 51 Haulers Intercepted 6 | . 1 1 3 1 Recyclers Shooed 4 | . . 3 1 . Parts Field Recycled . | . . . . . Retrieved Matter . | . . . . . Parts Self-Destructed . | . . . . . Prevented . | . . . . . Kills | -11 -10 -9 -8 -7 ------- Run | Yrd Mat Mat Mat Fac Combat Hostiles Destroyed 45 | . 7 15 7 16 Melee 3 | . . . . 3 Guns 30 | . 7 11 6 6 Cannons 1 | . . . 1 . AOE 11 | . . 4 . 7 Classes Destroyed 13 | . 6 3 2 2 Worker 3 | . 2 . 1 . Builder 4 | . . . 1 3 Tunneler 4 | . 1 2 . 1 Hauler 6 | . 1 1 3 1 Recycler 7 | . . 2 1 4 Watcher 8 | . 1 4 1 2 Swarmer 6 | . 3 3 . . Grunt 24 | . 4 9 3 8 Brawler 1 | . . 1 . . Sentry 4 | . . 2 2 . Specialist 1 | . . . . 1 Hunter 5 | . . . 2 3 Programmer 4 | . . . . 4 Best Kill Streak 6 | . 4 4 4 6 Combat Bots Only 5 | . 3 4 3 5 Max Kills in Single Turn 3 | . 2 3 2 2 Gunslinging 1 | . 1 . . . Exploded 3 | . . 3 . 2 Melee 1 | . . . . 1 Uniques/NPCs Destroyed . | . . . . . Combat | -11 -10 -9 -8 -7 -------- Run | Yrd Mat Mat Mat Fac Hostile Shots Fired 368 | . 46 74 46 202 Missed 117 | . 15 23 11 68 Hits 251 | . 31 51 35 134 Projectile 251 | . 31 51 35 134 AOE 2 | . . . . 2 Critical Strikes 7 | . . . 1 6 Part Disruptions 2 | . . . . 2 Damage Taken 3886 | . 307 672 559 2348 Core 972 | . 27 167 72 706 Absorbed by Shields . | . . . . . Core Remaining (%) 83 | 100 89 58 86 . Volleys Fired 202 | . 30 73 39 60 Largest 4 | . 2 2 4 4 Hottest 116 | . 40 53 108 116 Shots Fired 443 | . 60 146 122 115 Gun 386 | . 60 141 98 87 Cannon 37 | . . . 24 13 Launcher 20 | . . 5 . 15 Special . | . . . . . Kinetic 418 | . 60 141 122 95 Thermal 5 | . . . . 5 Explosive 20 | . . 5 . 15 Electromagnetic . | . . . . . Robot Hit Streak 26 | . 6 11 10 26 Robot Miss Streak 8 | . 8 7 7 7 Penetration Max . | . . . . . Secondary Targets 4 | . 3 1 . . Max Gunslinging Chain 1 | . 1 1 . . Shots Hit Robots 270 | . 34 88 69 79 Core Hits 160 | . 19 41 41 59 Critical Kills 1 | . . . . 1 Critical Parts Destroyed 3 | . . . 1 2 Critical Strikes 4 | . . . 1 3 Destroy 4 | . . . 1 3 Melee Attacks 5 | . . . . 5 Impact . | . . . . . Slashing 5 | . . . . 5 Piercing . | . . . . . Sneak Attacks 2 | . . . . 2 Combat Hostiles . | . . . . . Follow-up Attacks . | . . . . . Damage Inflicted 5670 | . 385 1636 1139 2510 Guns 2826 | . 385 1123 601 717 Cannons 510 | . . . 339 171 Explosions 1992 | . . 513 199 1280 Melee 342 | . . . . 342 Ramming . | . . . . . Kinetic 3276 | . 385 1123 940 828 Thermal 129 | . . . 69 60 Explosive 1923 | . . 513 130 1280 Electromagnetic . | . . . . . Impact . | . . . . . Slashing 342 | . . . . 342 Piercing . | . . . . . Highest Corruption 5 | . . . . 5 Average Corruption 4 | . . . . 4 Corruption Purged . | . . . . . Corruption Blocked . | . . . . . Effects 9 | . . . . 9 Message Errors 1 | . . . . 1 Matter Fused 3 | . . . . 3 Heat Flow Errors 2 | . . . . 2 Energy Discharges 2 | . . . . 2 Data Loss (minor) 1 | . . . . 1 Overload Shots . | . . . . . Overflow Damage 114 | . . 20 12 82 Projectiles . | . . . . . Explosions 59 | . . 20 12 27 Melee 55 | . . . . 55 Knockbacks 15 | . . . 11 4 Impact . | . . . . . Kinetic 15 | . . . 11 4 Secondary . | . . . . . Self-Inflicted Damage 186 | . . 58 . 128 Shots 8 | . . 3 . 5 Rammed . | . . . . . Targets Rammed . | . . . . . Kicked . | . . . . . Crushed . | . . . . . Highest Temperature 212 | . 12 4 89 212 Average Temperature 30 | . 5 3 28 45 Received Heat Transfer 1071 | . 78 300 162 531 Siege Activations . | . . . . . Martial Activations . | . . . . . Shielding Activations . | . . . . . Robots Disrupted . | . . . . . Combat Hostiles . | . . . . . Robots Corrupted . | . . . . . Combat Hostiles . | . . . . . Parts Fried . | . . . . . Impact Corruptions . | . . . . . Robots Melted . | . . . . . Combat Hostiles . | . . . . . Parts Melted . | . . . . . Heat Transferred 150 | . . . 50 100 Parts Sabotaged . | . . . . . Parts Stolen . | . . . . . Parts Stripped . | . . . . . Power Chain Reactions . | . . . . . Alert | -11 -10 -9 -8 -7 ------- Run | Yrd Mat Mat Mat Fac Maximum Alert Level 1 | . . 1 . 1 Low Security (%) 74 | 100 100 56 100 71 Level 1 25 | . . 43 . 28 Level 2 . | . . . . . Level 3 . | . . . . . Level 4 . | . . . . . Level 5 . | . . . . . High Security . | . . . . . Max Security . | . . . . . Peak Influence 265 | . 120 265 196 248 Initial 70 | . . 31 70 66 Average 126 | . 47 156 154 127 Influence Increases 1777 | . 199 503 315 760 Destroy 0b10 Robot/C 900 | . 140 300 140 320 Destroy 0b10 Robot/NC 160 | . 25 45 35 55 Destroy Leader 238 | . 34 70 48 86 Successful Hack 12 | . . . . 12 Disable Machine 210 | . . 15 60 135 Destroy Structure 152 | . . 28 17 107 Lose Combat Pursuer 105 | . . 45 15 45 Influence Decreases 1637 | . 125 409 336 767 Entered New Map 222 | . . 43 98 81 Time Decay 1175 | . 125 346 198 506 Lost Part 240 | . . 20 40 180 Squads Dispatched 14 | . 1 1 . 12 Investigation 2 | . . . . 2 Extermination 3 | . . . . 3 Reinforcement 8 | . 1 1 . 6 Assault . | . . . . . Garrison 1 | . . . . 1 Intercept . | . . . . . Searches Triggered . | . . . . . Construction Impeded 1 | . . . . 1 Haulers Reinforced 1 | . . . . 1 Active Scanning Responses . | . . . . . Cargo Convoy Interrupts 1 | . . . . 1 Stealth | -11 -10 -9 -8 -7 --------- Run | Yrd Mat Mat Mat Fac Distress Signals 7 | . 1 2 3 1 Communications Jammed . | . . . . . Distress Signals . | . . . . . Times Spotted 72 | . 12 22 11 27 Peak Tracking Total 5 | . 3 5 4 5 Tactical Retreats 6 | . . 2 1 3 Traps | -11 -10 -9 -8 -7 ------- Run | Yrd Mat Mat Mat Fac Traps Triggered 3 | . . . . 3 Indirectly . | . . . . . Trap Hack Attempts . | . . . . . Triggered . | . . . . . Disarmed . | . . . . . Reprogrammed . | . . . . . Reused . | . . . . . Traps Extracted . | . . . . . Installed . | . . . . . Triggered . | . . . . . Machines | -11 -10 -9 -8 -7 ---------- Run | Yrd Mat Mat Mat Fac Machines Disabled 14 | . . 1 4 9 Max in Single Turn 6 | . . 1 3 6 Garrison Access 1 | . . . . 1 Machines Repaired . | . . . . . Machines Dismantled . | . . . . . Machines Sabotaged . | . . . . . Overloaded Fab Kills . | . . . . . Hacking | -11 -10 -9 -8 -7 --------- Run | Yrd Mat Mat Mat Fac Machines Accessed 5 | . . . . 5 Terminals 3 | . . . . 3 Fabricators 1 | . . . . 1 Repair Stations . | . . . . . Recycling Units . | . . . . . Scanalyzers . | . . . . . Garrison Access 1 | . . . . 1 Total Hacks 8 | . . . . 8 Successful 6 | . . . . 6 Failed 2 | . . . . 2 Catastrophic . | . . . . . Database Lockouts . | . . . . . Manual . | . . . . . Terminals 6 | . . . . 6 Fabricators 1 | . . . . 1 Repair Stations . | . . . . . Recycling Units . | . . . . . Scanalyzers . | . . . . . Garrison Access 1 | . . . . 1 Terminal Hacks 4 | . . . . 4 Part Schematic 1 | . . . . 1 Robot Schematic 1 | . . . . 1 Robot Analysis 1 | . . . . 1 Open DSF 1 | . . . . 1 Fabricator Hacks 1 | . . . . 1 Build 1 | . . . . 1 Repair Station Hacks . | . . . . . Recycling Unit Hacks . | . . . . . Scanalyzer . | . . . . . Garrison Access Hacks 1 | . . . . 1 Seal Access 1 | . . . . 1 Unauthorized Hacks . | . . . . . Terminals . | . . . . . Fabricators . | . . . . . Repair Stations . | . . . . . Recycling Units . | . . . . . Scanalyzers . | . . . . . Garrison Access . | . . . . . Data Cores Recovered . | . . . . . Used . | . . . . . Hacking Detections 2 | . . . . 2 Full Trace Events 1 | . . . . 1 Feedback Events . | . . . . . Feedback Blocked . | . . . . . Robot Schematics Acquired 1 | . . . . 1 Robots Built . | . . . . . Authchips . | . . . . . Time . | . . . . . Total Robot Build Rating . | . . . . . Part Schematics Acquired 1 | . . . . 1 Parts Built 2 | . . . . 2 Authchips . | . . . . . Time 84 | . . . . 84 Total Part Build Rating 8 | . . . . 8 Parts Repaired . | . . . . . Time . | . . . . . Parts Recycled . | . . . . . Recycled Matter . | . . . . . Retrieved Matter . | . . . . . Retrieved Components . | . . . . . Parts Scanalyzed . | . . . . . Part Schematics Acquired . | . . . . . Parts Damaged . | . . . . . Bothacking | -11 -10 -9 -8 -7 ------------ Run | Yrd Mat Mat Mat Fac Used RIF Installer . | . . . . . Robots Hacked . | . . . . . Non-combat . | . . . . . Combat . | . . . . . Robot Hacks Applied . | . . . . . Relay Couplers Released . | . . . . . Fabnet Peak Effective % . | . . . . . Robots Rewired . | . . . . . Allies Hacked . | . . . . . Hacks Repelled . | . . . . . Allies | -11 -10 -9 -8 -7 -------- Run | Yrd Mat Mat Mat Fac Total Allies . | . . . . . Largest Group . | . . . . . Highest-Rated Group . | . . . . . Highest-Rated Ally . | . . . . . Total Orders . | . . . . . Ally Attacks . | . . . . . Total Damage . | . . . . . Kills . | . . . . . Allies Corrupted . | . . . . . Allies Melted . | . . . . . Intel | -11 -10 -9 -8 -7 ------- Run | Yrd Mat Mat Mat Fac Active Infowar (turns) 2130 | . . . 337 1793 T.N.C. 2130 | . . . 337 1793 Robot Analysis Total 1 | . . . . 1 Derelict Logs Recovered . | . . . . . Drone Launches . | . . . . . Drone Recoveries . | . . . . . Exploration | -11 -10 -9 -8 -7 ------------- Run | Yrd Mat Mat Mat Fac Turns Passed 3631 | 67 408 952 411 1793 Spaces Moved 1438 | 46 193 440 156 603 Core 52 | 25 . 12 . 15 Treads 732 | 21 193 360 . 158 Legs 654 | . . 68 156 430 Wheels . | . . . . . Hover . | . . . . . Flight . | . . . . . Fastest Speed 50 | 50 160 130 130 50 Average Speed 196 | 123 160 160 173 244 Slowest Speed 650 | 160 160 350 200 650 Overloaded Moves . | . . . . . Propulsion Burnouts . | . . . . . Robots Hopped . | . . . . . Potential Cave-ins . | . . . . . Cave-ins Triggered . | . . . . . Exploration Rate (%) 25 | 5 41 41 22 18 Regions Visited 4 Branch Regions . Pre-discovered Areas . | . . . . . Known Exits Taken . | . . . . . Unknown Exits Taken 4 | 1 1 1 1 . Scrap Searched . | . . . . . Spaces Dug 17 | . . . . 17 Terrain Destroyed 165 | . . 31 17 117 Melee . | . . . . . Projectile . | . . . . . AOE 165 | . . 31 17 117 Terrain Rammed . | . . . . . Walls Destroyed . | . . . . . Machines Disabled . | . . . . . Actions | -11 -10 -9 -8 -7 --------- Run | Yrd Mat Mat Mat Fac Total 1854 | 57 238 538 207 814 Wait 119 | . . 3 . 116 Move 1434 | 45 192 439 155 603 Hop . | . . . . . Pick Up 36 | 6 9 7 5 9 Fast Attach 4 | . . 4 . . Attach 28 | 5 2 1 7 13 Detach 2 | . . . . 2 Swap 10 | . 2 7 1 . Drop 9 | 1 3 4 . 1 Fire 202 | . 30 73 39 60 Melee 5 | . . . . 5 Ram . | . . . . . Kick . | . . . . . Crush . | . . . . . Escape Stasis 5 | . . . . 5 Rewire . | . . . . . Trap . | . . . . . Miscellaneous . | . . . . . Route ------- -11/Scrapyard -10/Materials -9/Materials -8/Materials -7/Factory (discovered 1 exit: [*Fac]) History --------- Turn | Location | Event 28 | -11/Scrapyard | Discovered new exit (range 14) 68 | -11/Scrapyard | Entered Materials 307 | -10/Materials | Build established: Mutant 393 | -10/Materials | Discovered new exit (range 13) 476 | -10/Materials | Entered another Materials area 476 | -9/Materials | Evolved 2 slots: Utility x2 1420 | -9/Materials | Discovered new exit (range 4) 1428 | -9/Materials | Entered another Materials area 1428 | -8/Materials | Evolved 2 slots: Weapon x2 1681 | -8/Materials | Discovered new exit (range 7) 1721 | -8/Materials | Lost 3 parts (1p2w) 1839 | -8/Materials | Entered Factory 1839 | -7/Factory | Evolved 2 slots: Utility x2 1954 | -7/Factory | Fabricated Greatsword (x2) 2175 | -7/Factory | Build established: Hacker-Skirmisher 2236 | -7/Factory | Garrison activated, responded to threat 2327 | -7/Factory | Lost 6 parts (2n4w) 2550 | -7/Factory | Build established: Hacker-Mutant 2950 | -7/Factory | Cargo convoy interrupted 3222 | -7/Factory | Core integrity fell below 50% 3241 | -7/Factory | Lost 3 parts (1u2w) 3611 | -7/Factory | Discovered new exit (range 5) 3625 | -7/Factory | Core integrity fell below 20% 3632 | -7/Factory | Destroyed by X-57 Shotgunner with Shotgun Last Messages --------------- Hacking Suite destroyed. Critical hit (Blast). Knocked back. Imp. Grenade Launcher destroyed. Knocked back. Neutrino Reactor explodes. Hacking Suite destroyed. Door malfunctions. Neutrino Reactor explodes. Door malfunctions. Neutrino Reactor explodes. Terminal disabled. VSS Leg destroyed. Knocked back. Dropped Lrg. Storage Unit. X-57 Shotgunner knocked back. Mic. Nuclear Core destroyed. ALERT: Suspicious intruders detected, dispatching Specialist reinforcements to area. X-57 Shotgunner destroyed. Map ----- +----------------------------------------------------+ | ???????????????????????????????? | | ???????????????????????????????? | | ???????????????????????????????? | | ???????????????????????????????? | | ???????????????????????????????? | | ???????????????????????????????? | | ???????????????????????????????? | | ???????????????????????????????? | | ???????????????????????????????? | | ???????????????????????????????? | | ??????????????????????????H????? | | ?????????????????????????? ????? | | ?????????????????????????? ????? | | ?????????????????????????? ????? | | ?????????????????????????? ????? | | ?????????????????????????? ????? | | ?????????????????????????? ????? | | ?????????????????????????? ????? | | ?????????????????????????# #???? | | ?????????????????????????# #???? | | ?????????????????????????# #???? | | ?????????????????????????# #???? | | ???###########+########### #???? | | ???# # #???? | | ???# #o#???? | | ???#